[Event "SVK ECo-C Extraliga 2018-19"]
[Site "Slovakia"]
[Date "2018.11.11"]
[Round "2"]
[White "Banas, Kamil"]
[Black "Walter, Szymon"]
[Result "1-0"]
[ECO "B76"]
[WhiteElo "2255"]
[BlackElo "2322"]
[Annotator "NA"]
[PlyCount "35"]
[EventDate "2018.11.10"]
[EventType "team-tourn"]
[EventCountry "SVK"]
[SourceTitle "playchess.com"]
[Source "ChessBase"]
[SourceQuality "1"]
[WhiteTeam "Modra"]
[BlackTeam "Dubnica"]
[TimeControl "40/5400+30:1800+30"]

1. e4 {[%emt 0:00:00]} c5 {[%emt 0:00:00]} 2. Nf3 {[%emt 0:00:00]} d6 {[%emt 0:00:11]} 3. d4 {[%emt 0:00:00]} cxd4 {[%emt 0:00:06]} 4. Nxd4 {[%emt 0:00:00]} Nf6 {[%emt 0:00:17]} 5. Nc3 {[%emt 0:00:00]} g6 {[%emt 0:00:13]} 6. Be3 {[%emt 0:00:46]} Bg7 {[%emt 0:00:14]} 7. f3 {[%emt 0:00:05]} O-O {[%emt 0:00:37]} 8. Qd2 {[%emt 0:00:02]} Nc6 {[%emt 0:00:29]} 9. O-O-O {[%emt 0:00:09]} d5 {[%emt 0:01:01]} 10. Qe1 {[%emt 0:03:10]} e6 {[%emt 0:01:24]} 11. h4 {[%emt 0:02:13]} Qc7 {[%emt 0:00:18]} 12. h5 {[%emt 0:09:05]} Nxh5 {[%emt 0:15:53]} 13. g4 {[%emt 0:04:22]} Nxd4 {[%emt 0:24:10]} 14. Bxd4 {[%emt 0:09:08]} Bxd4 {[%emt 0:00:33]} 15. Rxd4 {[%emt 0:01:40]} Qf4+ {[%emt 0:00:28]} 16. Kb1 {[%emt 0:02:00]} Nf6 {[%emt 0:25:36]} 17. Qh4 {[%emt 0:04:46]} Bd7 {[%emt 0:05:02]} 18. Ne2 {[%emt 0:02:09]} 1-0

[Event "SVK ECo-C Extraliga 2018-19"]
[Site "Slovakia"]
[Date "2018.11.11"]
[Round "2"]
[White "Holtman, Teodor"]
[Black "Haring, Viktor"]
[Result "1-0"]
[ECO "B34"]
[WhiteElo "2234"]
[BlackElo "2314"]
[Annotator "NA"]
[PlyCount "73"]
[EventDate "2018.11.10"]
[EventType "team-tourn"]
[EventCountry "SVK"]
[SourceTitle "playchess.com"]
[Source "ChessBase"]
[SourceQuality "1"]
[WhiteTeam "Snina"]
[BlackTeam "Liptovska"]
[TimeControl "40/5400+30:1800+30"]

1. e4 {[%emt 0:00:00]} c5 {[%emt 0:00:00]} 2. Nc3 {[%emt 0:00:00]} Nc6 {[%emt 0:00:06]} 3. Nf3 {[%emt 0:00:00]} Nf6 {[%emt 0:00:33]} 4. d4 {[%emt 0:00:04]} cxd4 {[%emt 0:00:20]} 5. Nxd4 {[%emt 0:00:03]} e5 {[%emt 0:00:42]} 6. Ndb5 {[%emt 0:00:04]} d6 {[%emt 0:00:18]} 7. a4 {[%emt 0:00:49]} a6 {[%emt 0:04:26]} 8. Na3 {[%emt 0:00:02]} Be6 {[%emt 0:06:47]} 9. Bc4 {[%emt 0:00:54]} Rc8 {[%emt 0:12:36]} 10. Bg5 {[%emt 0:01:24]} Be7 {[%emt 0:15:09] B33: Sicilian: Pelikan and Sveshnikov Variations} (10... Nd4 11. Nd5 Qa5+ 12. Bd2 Qd8 13. Bg5 Qa5+ {½-½ (13) Papp,G (2509)-Vovk,Y (2549) Szombathely 2008}) 11. Bxf6 {[%emt 0:01:34]} Bxf6 {[%emt 0:00:11]} 12. Nd5 {[%emt 0:02:16] LiveBook: 29 Games} Bg5 {[%emt 0:00:35]} 13. c3 {[%emt 0:00:51]} O-O {[%emt 0:07:51]} 14. h4 {[%emt 0:03:19]} Bh6 {[%emt 0:00:20]} ({Aber nicht} 14... Bxh4 $2 15. Qh5 $18) 15. g4 {[%emt 0:19:34]} Bf4 {[%emt 0:00:43]} 16. Qf3 $11 {[%emt 0:19:15]} ({Predecessor:} 16. Nxf4 exf4 17. Bxe6 fxe6 {0-1 (26) Walker,P-Ledger,S (2165) London 1999}) 16... Ne7 {[%emt 0:11:00]} 17. Nxf4 {[%emt 0:03:57]} Bxc4 {[%emt 0:02:30]} 18. Nxc4 {[%emt 0:00:47]} Rxc4 {[%emt 0:01:26]} 19. Ne2 {[%emt 0:10:08] [#]} Qb6 $1 {[%emt 0:05:58]} 20. Qd3 {[%emt 0:03:35]} Rfc8 {[%emt 0:08:35]} 21. a5 {[%emt 0:11:43]} Qxb2 {[%emt 0:10:45]} 22. O-O {[%emt 0:00:02]} Qb5 {[%emt 0:01:58]} 23. Qxd6 {[%emt 0:00:02]} Ng6 {[%emt 0:01:14]} 24. h5 {[%emt 0:06:34]} Nh4 {[%emt 0:03:31]} 25. Rab1 {[%emt 0:10:19]} Qxa5 {[%emt 0:02:25]} 26. Rxb7 {[%emt 0:00:41]} Rxe4 {[%emt 0:01:08]} 27. Ng3 {[%emt 0:00:25]} Nf3+ {[%emt 0:01:42]} 28. Kg2 {[%emt 0:01:35]} Rec4 {[%emt 0:00:34]} 29. Kxf3 {[%emt 0:02:18]} Qxc3+ {[%emt 0:00:07]} 30. Kg2 {[%emt 0:00:07]} Rxg4 {[%emt 0:00:47]} 31. Rb8 {[%emt 0:00:55]} h6 {[%emt 0:00:32]} 32. Rxc8+ {[%emt 0:00:47]} Qxc8 {[%emt 0:00:08]} 33. Rb1 {[%emt 0:01:08]} Qc2 {[%emt 0:00:59]} 34. Rb8+ {[%emt 0:00:34]} Kh7 {[%emt 0:00:05]} 35. Qd8 {[%emt 0:00:31]} Qe4+ {[%emt 0:00:24]} 36. Kf1 {[%emt 0:00:52]} Qc4+ {[%emt 0:00:11]} 37. Ne2 {[%emt 0:00:15]} 1-0

[Event "SVK ECo-C Extraliga 2018-19"]
[Site "Slovakia"]
[Date "2018.11.11"]
[Round "2"]
[White "Molnar, Erno"]
[Black "Franzen, Jozef"]
[Result "1-0"]
[ECO "B06"]
[WhiteElo "2233"]
[BlackElo "2239"]
[Annotator "NA"]
[PlyCount "73"]
[EventDate "2018.11.10"]
[EventType "team-tourn"]
[EventCountry "SVK"]
[SourceTitle "playchess.com"]
[Source "ChessBase"]
[SourceQuality "1"]
[WhiteTeam "Komarno"]
[BlackTeam "Slovan"]
[TimeControl "40/5400+30:1800+30"]

1. e4 {[%emt 0:00:00]} g6 {[%emt 0:00:00]} 2. d4 {[%emt 0:00:00]} Bg7 {[%emt 0:00:00]} 3. Nc3 {[%emt 0:00:00]} d6 {[%emt 0:00:00]} 4. f4 {[%emt 0:00:00]} c6 {[%emt 0:00:00]} 5. Nf3 {[%emt 0:01:08]} Bg4 {[%emt 0:00:05]} 6. Be3 {[%emt 0:03:42]} Qb6 {[%emt 0:00:45]} 7. Qd2 {[%emt 0:06:54]} Bxf3 {[%emt 0:00:14]} 8. gxf3 {[%emt 0:00:09]} Nd7 {[%emt 0:00:47]} 9. O-O-O {[%emt 0:04:31]} Qa5 {[%emt 0:00:55]} 10. Kb1 {[%emt 0:11:49]} O-O-O {[%emt 0:00:44]} 11. Bc4 {[%emt 0:08:31]} e6 {[%emt 0:04:15]} 12. Bb3 {[%emt 0:02:45]} Kb8 {[%emt 0:01:15]} 13. Rhg1 {[%emt 0:06:20]} Ne7 {[%emt 0:02:59]} 14. f5 {[%emt 0:07:00]} exf5 {[%emt 0:00:49]} 15. Bxf7 {[%emt 0:01:33]} Rhf8 {[%emt 0:09:09]} 16. Bb3 {[%emt 0:03:03]} fxe4 {[%emt 0:04:24]} 17. fxe4 {[%emt 0:00:17]} Nf6 {[%emt 0:06:47]} 18. Rdf1 {[%emt 0:11:11]} Qc7 {[%emt 0:12:27]} 19. a3 {[%emt 0:05:40]} Qd7 {[%emt 0:02:17]} 20. Bh6 {[%emt 0:04:48]} Nc8 {[%emt 0:03:55]} 21. Bg5 {[%emt 0:02:59]} Rde8 {[%emt 0:00:51]} 22. Qd3 {[%emt 0:00:42]} Nh5 {[%emt 0:04:12]} 23. d5 {[%emt 0:05:34]} Rxf1+ {[%emt 0:01:43]} 24. Rxf1 {[%emt 0:00:43]} Qg4 {[%emt 0:01:29]} 25. h4 {[%emt 0:09:31]} c5 {[%emt 0:07:29]} 26. Qb5 {[%emt 0:01:46]} Rf8 {[%emt 0:00:21]} 27. Rxf8 {[%emt 0:00:59]} Bxf8 {[%emt 0:00:02]} 28. Qe8 {[%emt 0:00:06]} Bg7 {[%emt 0:08:54]} 29. Nb5 {[%emt 0:00:22]} c4 {[%emt 0:02:24]} 30. Ba4 {[%emt 0:01:06]} Qg1+ {[%emt 0:05:18]} 31. Ka2 {[%emt 0:00:06]} Qc5 {[%emt 0:00:02]} 32. Bd8 {[%emt 0:01:10]} b6 {[%emt 0:00:03]} 33. Qd7 {[%emt 0:00:49]} Nf6 {[%emt 0:02:09]} 34. Qxg7 {[%emt 0:00:13]} a6 {[%emt 0:02:06]} 35. Bc7+ {[%emt 0:00:34]} Ka8 {[%emt 0:00:17]} 36. Bxd6 {[%emt 0:00:22]} Ne8 {[%emt 0:01:32]} 37. Nc7+ {[%emt 0:00:30]} 1-0

[Event "SVK ECo-C Extraliga 2018-19"]
[Site "Slovakia"]
[Date "2018.11.11"]
[Round "2"]
[White "Gazik, Igor"]
[Black "Farkas, Gabor"]
[Result "1-0"]
[ECO "B26"]
[WhiteElo "2220"]
[BlackElo "2373"]
[Annotator "NA"]
[PlyCount "115"]
[EventDate "2018.11.10"]
[EventType "team-tourn"]
[EventCountry "SVK"]
[SourceTitle "playchess.com"]
[Source "ChessBase"]
[SourceQuality "1"]
[WhiteTeam "Podhajska"]
[BlackTeam "Streda"]
[TimeControl "40/5400+30:1800+30"]

1. e4 {[%emt 0:00:00]} c5 {[%emt 0:00:00]} 2. Nc3 {[%emt 0:00:00]} Nc6 {[%emt 0:00:28]} 3. g3 {[%emt 0:01:27]} g6 {[%emt 0:00:17]} 4. Bg2 {[%emt 0:00:05]} Bg7 {[%emt 0:00:06]} 5. d3 {[%emt 0:00:06]} d6 {[%emt 0:04:57]} 6. Be3 {[%emt 0:01:11]} Nf6 {[%emt 0:02:23]} 7. h3 {[%emt 0:00:41]} O-O {[%emt 0:00:37]} 8. Nge2 {[%emt 0:10:26]} Rb8 {[%emt 0:01:35]} 9. Qd2 {[%emt 0:01:26]} b5 {[%emt 0:08:46]} 10. O-O {[%emt 0:00:42]} b4 {[%emt 0:03:38]} 11. Nd1 {[%emt 0:00:24]} Ne8 {[%emt 0:15:01]} 12. Bh6 {[%emt 0:17:37]} Nd4 {[%emt 0:04:38]} 13. Bxg7 {[%emt 0:04:28]} Nxg7 {[%emt 0:03:15]} 14. Nxd4 {[%emt 0:12:58]} cxd4 {[%emt 0:00:07]} 15. b3 {[%emt 0:00:05]} Qc7 {[%emt 0:03:51]} 16. a3 {[%emt 0:00:19]} a5 {[%emt 0:03:45]} 17. axb4 {[%emt 0:00:48]} axb4 {[%emt 0:00:07]} 18. Nb2 {[%emt 0:07:33]} Qc3 {[%emt 0:04:52]} 19. Nc4 {[%emt 0:00:42]} Be6 {[%emt 0:08:19]} 20. Qxc3 {[%emt 0:07:24]} bxc3 {[%emt 0:00:13]} 21. Na5 {[%emt 0:06:02]} Rfc8 {[%emt 0:03:22]} 22. e5 {[%emt 0:04:00]} Rb6 {[%emt 0:08:43]} 23. exd6 {[%emt 0:10:07]} Rxd6 {[%emt 0:00:18]} 24. b4 {[%emt 0:02:16]} Bd5 {[%emt 0:02:20]} 25. b5 {[%emt 0:05:08]} Bxg2 {[%emt 0:03:31]} 26. Kxg2 {[%emt 0:00:02]} Rb6 {[%emt 0:03:05]} 27. Nc6 {[%emt 0:00:54]} Kf8 {[%emt 0:00:19]} 28. Nxd4 {[%emt 0:01:37]} e5 {[%emt 0:00:29]} 29. Nc6 {[%emt 0:00:07]} Nf5 {[%emt 0:03:48]} 30. Rfb1 {[%emt 0:00:34]} Nd6 {[%emt 0:01:58]} 31. Nxe5 {[%emt 0:02:16]} Rxb5 {[%emt 0:00:12]} 32. Rxb5 {[%emt 0:01:17]} Nxb5 {[%emt 0:00:07]} 33. Nc4 {[%emt 0:00:54]} Nd4 {[%emt 0:01:43]} 34. Ne3 {[%emt 0:00:03]} Nc6 {[%emt 0:05:14]} 35. Ra4 {[%emt 0:01:08]} Ne5 {[%emt 0:00:39]} 36. Rd4 {[%emt 0:01:01]} f5 {[%emt 0:02:11]} 37. f4 {[%emt 0:00:42]} Nf7 {[%emt 0:01:21]} 38. Rd7 {[%emt 0:00:25]} h6 {[%emt 0:02:01]} 39. Kf3 {[%emt 0:00:20]} Rc6 {[%emt 0:00:11]} 40. Nd5 {[%emt 0:01:23]} Rc5 {[%emt 0:00:55]} 41. Ke3 {[%emt 0:05:52]} Rc6 {[%emt 0:01:54]} 42. Rc7 {[%emt 0:01:20]} Re6+ {[%emt 0:03:26]} 43. Kf2 {[%emt 0:02:08]} Nd8 {[%emt 0:00:19]} 44. Nxc3 {[%emt 0:02:46]} Nc6 {[%emt 0:00:42]} 45. Ne2 {[%emt 0:02:16]} Ke8 {[%emt 0:01:04]} 46. c3 {[%emt 0:00:38]} Kd8 {[%emt 0:01:42]} 47. Rh7 {[%emt 0:00:05]} h5 {[%emt 0:00:18]} 48. Rb7 {[%emt 0:02:09]} Kc8 {[%emt 0:01:52]} 49. Rg7 {[%emt 0:00:09]} Kd8 {[%emt 0:00:41]} 50. Ng1 {[%emt 0:00:46]} Ne7 {[%emt 0:00:25]} 51. Nf3 {[%emt 0:00:36]} Ke8 {[%emt 0:00:57]} 52. c4 {[%emt 0:07:18]} Kf8 {[%emt 0:06:24]} 53. Rh7 {[%emt 0:00:04]} Nc6 {[%emt 0:01:59]} 54. Rb7 {[%emt 0:00:37]} Re8 {[%emt 0:01:14]} 55. Rb6 {[%emt 0:00:25]} Ne7 {[%emt 0:01:40]} 56. Ne5 {[%emt 0:00:19]} Rd8 {[%emt 0:00:29]} 57. Ke3 {[%emt 0:02:29]} Kg7 {[%emt 0:00:22]} 58. Rb7 {[%emt 0:01:04]} 1-0

[Event "SVK ECo-C Extraliga 2018-19"]
[Site "Slovakia"]
[Date "2018.11.11"]
[Round "2"]
[White "Fiacan, Robert"]
[Black "Macko, Michal"]
[Result "1-0"]
[ECO "B23"]
[WhiteElo "2213"]
[BlackElo "2178"]
[Annotator "NA"]
[PlyCount "93"]
[EventDate "2018.11.10"]
[EventType "team-tourn"]
[EventCountry "SVK"]
[SourceTitle "playchess.com"]
[Source "ChessBase"]
[SourceQuality "1"]
[WhiteTeam "Snina"]
[BlackTeam "Liptovska"]
[TimeControl "40/5400+30:1800+30"]

1. e4 {[%emt 0:00:00]} c5 {[%emt 0:00:03]} 2. Nc3 {[%emt 0:00:00]} a6 {[%emt 0:00:05]} 3. Bc4 {[%emt 0:04:35]} e6 {[%emt 0:00:11]} 4. d3 {[%emt 0:01:59]} b5 {[%emt 0:06:28]} 5. Bb3 {[%emt 0:02:21] LiveBook: 5 Games} Nc6 {[%emt 0:00:14]} 6. f4 {[%emt 0:03:17]} Nd4 {[%emt 0:04:23]} 7. Nf3 {[%emt 0:01:33]} Nxb3 {[%emt 0:00:05]} 8. axb3 {[%emt 0:00:07]} Bb7 {[%emt 0:00:02]} 9. O-O {[%emt 0:00:35]} Nf6 {[%emt 0:01:55]} 10. e5 {[%emt 0:17:59]} b4 {[%emt 0:01:40]} 11. Ne2 {[%emt 0:02:38]} (11. exf6 $14 bxc3 12. bxc3) 11... Nd5 {[%emt 0:00:32]} 12. Ng3 {[%emt 0:01:34]} g6 {[%emt 0:11:38]} 13. Ne4 {[%emt 0:02:17]} f5 {[%emt 0:09:22]} 14. Neg5 {[%emt 0:10:33]} (14. exf6 $5 Nxf6 15. Nfg5 $11) 14... h6 {[%emt 0:06:19]} 15. Nh3 {[%emt 0:00:30]} Qc7 $15 {[%emt 0:01:34]} 16. Qe2 {[%emt 0:07:20]} Kf7 {[%emt 0:05:12]} 17. Nd2 {[%emt 0:02:47]} Nb6 {[%emt 0:00:17]} 18. Nf2 {[%emt 0:04:47]} d5 {[%emt 0:04:41]} 19. d4 {[%emt 0:13:53]} a5 {[%emt 0:04:31]} 20. Nf3 {[%emt 0:02:07]} Ba6 {[%emt 0:06:21]} 21. Nd3 {[%emt 0:00:21]} c4 {[%emt 0:00:21]} 22. bxc4 {[%emt 0:00:30]} dxc4 {[%emt 0:00:11]} 23. Nc5 Bxc5 {[%emt 0:00:22]} 24. dxc5 {[%emt 0:03:15]} Nd5 {[%emt 0:00:27]} 25. Qf2 {[%emt 0:00:59]} Rac8 {[%emt 0:02:17]} 26. c6 {[%emt 0:00:55]} c3 {[%emt 0:04:46]} 27. Rd1 {[%emt 0:00:30]} Bb5 {[%emt 0:14:06]} 28. bxc3 {[%emt 0:02:37]} Bxc6 {[%emt 0:00:07]} 29. cxb4 {[%emt 0:01:43]} Nc3 {[%emt 0:04:56]} 30. Rd4 {[%emt 0:05:01]} a4 {[%emt 0:04:23]} 31. Rc4 {[%emt 0:00:57]} Ne4 {[%emt 0:00:47]} 32. Qe3 {[%emt 0:02:08]} Qb7 {[%emt 0:01:40]} 33. Nd4 {[%emt 0:01:04]} Bb5 {[%emt 0:00:59]} 34. Rxc8 {[%emt 0:01:51]} Rxc8 {[%emt 0:00:08]} 35. Bb2 {[%emt 0:02:09]} Rc7 {[%emt 0:01:37]} 36. h4 {[%emt 0:01:03]} Bd7 {[%emt 0:00:54]} 37. c3 {[%emt 0:01:24]} Qc8 {[%emt 0:00:23]} 38. b5 {[%emt 0:00:52]} Nxc3 {[%emt 0:01:25]} 39. h5 {[%emt 0:00:29]} gxh5 {[%emt 0:00:20]} 40. b6 {[%emt 0:00:29]} Nd5 {[%emt 0:00:35]} 41. Qf3 {[%emt 0:02:41]} Nxb6 {[%emt 0:09:49]} 42. Qxh5+ {[%emt 0:00:18]} Kg7 {[%emt 0:03:13]} 43. Nxf5+ {[%emt 0:02:35]} exf5 {[%emt 0:00:25]} 44. e6+ {[%emt 0:00:18]} Rc3 {[%emt 0:00:07]} 45. Qf7+ {[%emt 0:00:07]} Kh8 {[%emt 0:00:08]} 46. exd7 {[%emt 0:01:54]} Nxd7 {[%emt 0:00:26]} 47. Rc1 {[%emt 0:00:27]} 1-0

[Event "SVK ECo-C Extraliga 2018-19"]
[Site "Slovakia"]
[Date "2018.11.11"]
[Round "2"]
[White "Jozefek, Michal"]
[Black "Kantorik, Marian"]
[Result "0-1"]
[ECO "D35"]
[WhiteElo "2207"]
[BlackElo "2209"]
[Annotator "NA"]
[PlyCount "44"]
[EventDate "2018.11.10"]
[EventType "team-tourn"]
[EventCountry "SVK"]
[SourceTitle "playchess.com"]
[Source "ChessBase"]
[SourceQuality "1"]
[WhiteTeam "Osuske"]
[BlackTeam "Dunajov"]
[TimeControl "40/5400+30:1800+30"]

1. d4 {[%emt 0:00:00]} d5 {[%emt 0:00:00]} 2. c4 {[%emt 0:00:00]} e6 {[%emt 0:00:04]} 3. Nc3 {[%emt 0:00:00]} Nf6 {[%emt 0:00:07]} 4. cxd5 {[%emt 0:00:04]} exd5 {[%emt 0:00:15]} 5. Bg5 {[%emt 0:00:07]} Be7 {[%emt 0:00:30]} 6. e3 {[%emt 0:00:05]} O-O {[%emt 0:00:54]} 7. Bd3 {[%emt 0:00:05]} c6 {[%emt 0:00:46]} 8. Qc2 {[%emt 0:04:36]} h6 {[%emt 0:00:41]} 9. Bh4 {[%emt 0:00:02]} Re8 {[%emt 0:00:48]} 10. Nf3 {[%emt 0:00:18]} Ne4 {[%emt 0:01:18]} 11. Bxe4 {[%emt 0:19:39]} Bxh4 {[%emt 0:07:52]} 12. Bh7+ {[%emt 0:00:09]} Kh8 {[%emt 0:05:56]} 13. Bd3 {[%emt 0:01:54]} Rxe3+ {[%emt 0:00:51]} 14. Kd2 {[%emt 0:09:53]} Re8 {[%emt 0:13:40]} 15. Rae1 {[%emt 0:04:37]} Be6 {[%emt 0:11:00]} 16. Re2 {[%emt 0:07:17]} Nd7 {[%emt 0:01:27]} 17. Rhe1 {[%emt 0:00:37]} Bf6 {[%emt 0:01:22]} 18. Kc1 {[%emt 0:15:29]} c5 {[%emt 0:16:51]} 19. dxc5 {[%emt 0:09:28]} Nxc5 {[%emt 0:00:54]} 20. Bb5 {[%emt 0:00:08]} Re7 {[%emt 0:04:23]} 21. Rd2 {[%emt 0:01:51]} Qa5 {[%emt 0:04:08]} 22. Bf1 {[%emt 0:03:02]} Rc8 {[%emt 0:05:02]} 0-1

[Event "SVK ECo-C Extraliga 2018-19"]
[Site "Slovakia"]
[Date "2018.11.11"]
[Round "2"]
[White "Kovac, Andrej"]
[Black "Bottyan, Peter"]
[Result "1-0"]
[ECO "A01"]
[WhiteElo "2206"]
[BlackElo "2187"]
[Annotator "NA"]
[PlyCount "57"]
[EventDate "2018.11.10"]
[EventType "team-tourn"]
[EventCountry "SVK"]
[SourceTitle "playchess.com"]
[Source "ChessBase"]
[SourceQuality "1"]
[WhiteTeam "Slovan"]
[BlackTeam "Komarno"]
[TimeControl "40/5400+30:1800+30"]

1. b3 {[%emt 0:00:03]} e5 {[%emt 0:03:00]} 2. Bb2 {[%emt 0:00:09]} Nc6 {[%emt 0:00:13]} 3. e3 {[%emt 0:00:07]} d5 {[%emt 0:01:04]} 4. Bb5 {[%emt 0:06:20]} f6 {[%emt 0:23:06]} 5. f4 {[%emt 0:13:47]} exf4 {[%emt 0:06:15]} 6. exf4 {[%emt 0:00:41]} Bc5 {[%emt 0:00:29]} 7. Nc3 {[%emt 0:01:33]} Qe7+ {[%emt 0:07:05]} 8. Nge2 {[%emt 0:06:08]} Be6 {[%emt 0:08:05]} 9. f5 {[%emt 0:13:28]} Bxf5 {[%emt 0:05:19]} 10. d4 {[%emt 0:01:58]} Bb4 {[%emt 0:05:01]} 11. O-O {[%emt 0:02:06]} Be4 {[%emt 0:03:52]} 12. Nxe4 {[%emt 0:11:55]} Qxe4 {[%emt 0:04:09]} 13. Ng3 {[%emt 0:00:11]} Qe3+ {[%emt 0:05:55]} 14. Kh1 {[%emt 0:00:03]} Nge7 {[%emt 0:00:23]} 15. a3 {[%emt 0:11:29]} Bd6 {[%emt 0:15:03]} 16. Nf5 {[%emt 0:00:18]} Qg5 {[%emt 0:02:37]} 17. Bxc6+ {[%emt 0:03:26]} Nxc6 {[%emt 0:03:26]} 18. Qe2+ {[%emt 0:03:56]} Kd7 {[%emt 0:00:17]} 19. Qb5 {[%emt 0:00:53]} Rae8 {[%emt 0:01:14]} 20. Nxd6 {[%emt 0:08:11]} Kxd6 {[%emt 0:00:46]} 21. Bc1 {[%emt 0:00:08]} Qg4 {[%emt 0:02:32]} 22. Bf4+ {[%emt 0:00:49]} Kd7 {[%emt 0:00:23]} 23. Qxb7 {[%emt 0:00:13]} Rc8 {[%emt 0:00:39]} 24. Rae1 {[%emt 0:00:51]} g5 {[%emt 0:00:17]} 25. Bg3 {[%emt 0:01:00]} Qxd4 {[%emt 0:00:43]} 26. Bf2 {[%emt 0:04:29]} Qg4 {[%emt 0:00:35]} 27. Qb5 {[%emt 0:00:54]} Qf5 {[%emt 0:00:31]} 28. Bg3 {[%emt 0:00:52]} a6 {[%emt 0:00:29]} 29. Qc5 {[%emt 0:00:31]} 1-0

[Event "SVK ECo-C Extraliga 2018-19"]
[Site "Slovakia"]
[Date "2018.11.11"]
[Round "2"]
[White "Motycakova, Monika"]
[Black "Pcola st., Jaroslav"]
[Result "1-0"]
[ECO "B36"]
[WhiteElo "2148"]
[BlackElo "2113"]
[Annotator "NA"]
[PlyCount "77"]
[EventDate "2018.11.10"]
[EventType "team-tourn"]
[EventCountry "SVK"]
[SourceTitle "playchess.com"]
[Source "ChessBase"]
[SourceQuality "1"]
[WhiteTeam "Liptovska"]
[BlackTeam "Snina"]
[TimeControl "40/5400+30:1800+30"]

1. e4 {[%emt 0:00:05]} c5 {[%emt 0:00:00]} 2. Nf3 {[%emt 0:00:15]} Nc6 {[%emt 0:00:12]} 3. d4 {[%emt 0:00:16]} cxd4 {[%emt 0:00:17]} 4. Nxd4 {[%emt 0:00:12]} g6 {[%emt 0:01:03]} 5. c4 {[%emt 0:00:27]} Nf6 {[%emt 0:02:49]} 6. Nc3 {[%emt 0:00:08]} Nxd4 {[%emt 0:00:43]} 7. Qxd4 {[%emt 0:00:08]} d6 {[%emt 0:00:25]} 8. Be2 {[%emt 0:00:39]} Bg7 {[%emt 0:00:45]} 9. Be3 {[%emt 0:01:32]} O-O {[%emt 0:00:41]} 10. Qd2 {[%emt 0:00:59]} a5 {[%emt 0:01:14]} 11. O-O {[%emt 0:01:20]} Bd7 {[%emt 0:01:02]} 12. f3 {[%emt 0:03:15]} Bc6 {[%emt 0:00:44]} 13. b3 {[%emt 0:01:45]} Nd7 {[%emt 0:01:00]} 14. Rab1 {[%emt 0:00:38]} Nc5 {[%emt 0:03:09] LiveBook: 19 Games} 15. Rfc1 {[%emt 0:00:35]} Re8 {[%emt 0:35:24]} 16. Rc2 {[%emt 0:04:19]} Qb6 {[%emt 0:06:36]} 17. Bf1 {[%emt 0:02:01]} Rec8 {[%emt 0:00:18]} 18. Qf2 {[%emt 0:12:35]} Qd8 $14 {[%emt 0:01:18]} 19. Qd2 {[%emt 0:17:12]} Be5 {[%emt 0:07:26]} 20. a3 {[%emt 0:01:54]} a4 {[%emt 0:16:32]} 21. b4 {[%emt 0:04:00]} Ne6 {[%emt 0:04:31]} 22. b5 {[%emt 0:27:45]} Bxc3 {[%emt 0:05:45]} 23. Qxc3 {[%emt 0:10:15]} Be8 {[%emt 0:00:54]} 24. e5 {[%emt 0:02:55]} Qc7 {[%emt 0:01:07]} 25. exd6 {[%emt 0:01:16]} exd6 {[%emt 0:00:48]} 26. Rd2 {[%emt 0:03:20]} Qe7 {[%emt 0:02:41]} 27. Qb4 {[%emt 0:03:00]} Nc5 {[%emt 0:00:40]} 28. Bf2 {[%emt 0:00:15]} b6 {[%emt 0:02:46]} 29. Bd4 {[%emt 0:00:34]} f6 {[%emt 0:03:05]} 30. Re2 {[%emt 0:00:36]} Qd8 {[%emt 0:00:18]} 31. Rbe1 {[%emt 0:00:23]} Bf7 {[%emt 0:00:46]} 32. Re7 {[%emt 0:00:06]} Rc7 {[%emt 0:00:30]} 33. Bxf6 {[%emt 0:00:28]} Rxe7 {[%emt 0:00:22]} 34. Rxe7 {[%emt 0:01:04]} Qf8 {[%emt 0:00:34]} 35. Qc3 {[%emt 0:00:35]} Re8 {[%emt 0:00:22]} 36. Rxe8 {[%emt 0:00:18]} Qxe8 {[%emt 0:00:27]} 37. Qd2 {[%emt 0:00:21]} Qe6 {[%emt 0:00:33]} 38. Bb2 {[%emt 0:00:16]} Nb3 {[%emt 0:00:33]} 39. Qh6 {[%emt 0:00:32]} 1-0

[Event "SVK ECo-C Extraliga 2018-19"]
[Site "Slovakia"]
[Date "2018.11.11"]
[Round "2"]
[White "Cajka, Tibor"]
[Black "Hanko, Pavol"]
[Result "0-1"]
[ECO "B81"]
[WhiteElo "2116"]
[BlackElo "2086"]
[Annotator "NA"]
[PlyCount "88"]
[EventDate "2018.11.10"]
[EventType "team-tourn"]
[EventCountry "SVK"]
[SourceTitle "playchess.com"]
[Source "ChessBase"]
[SourceQuality "1"]
[WhiteTeam "Osuske"]
[BlackTeam "Dunajov"]
[TimeControl "40/5400+30:1800+30"]

1. e4 {[%emt 0:00:00]} c5 {[%emt 0:00:00]} 2. Nf3 {[%emt 0:00:00]} e6 {[%emt 0:00:12]} 3. d4 {[%emt 0:00:00]} cxd4 {[%emt 0:00:11]} 4. Nxd4 {[%emt 0:00:00]} Nf6 {[%emt 0:00:19]} 5. Nc3 {[%emt 0:00:00]} d6 {[%emt 0:00:24]} 6. g4 {[%emt 0:00:17]} h6 {[%emt 0:00:19]} 7. h4 {[%emt 0:00:04]} h5 {[%emt 0:01:09]} 8. g5 {[%emt 0:05:31]} Ng4 {[%emt 0:00:50]} 9. Be2 {[%emt 0:00:04]} Nc6 {[%emt 0:03:17]} 10. Bxg4 {[%emt 0:13:30]} hxg4 {[%emt 0:05:05]} 11. Nxc6 {[%emt 0:03:27]} bxc6 {[%emt 0:00:38]} 12. e5 {[%emt 0:04:02]} dxe5 {[%emt 0:19:28]} 13. Qxg4 {[%emt 0:06:28]} Qd4 {[%emt 0:00:42]} 14. Qf3 {[%emt 0:10:55]} Bb7 {[%emt 0:02:10]} 15. Be3 {[%emt 0:17:13]} Qb4 {[%emt 0:03:30]} 16. O-O-O {[%emt 0:00:54]} c5 {[%emt 0:04:57]} 17. Qh3 {[%emt 0:01:00]} Bxh1 {[%emt 0:02:05]} 18. Qxh1 {[%emt 0:00:08]} Rc8 {[%emt 0:00:16]} 19. h5 {[%emt 0:00:45]} Qb6 {[%emt 0:08:18]} 20. h6 {[%emt 0:13:16]} Rd8 {[%emt 0:02:11]} 21. Rxd8+ {[%emt 0:02:36]} Kxd8 {[%emt 0:00:27]} 22. Qa8+ {[%emt 0:01:39]} Kd7 {[%emt 0:01:44]} 23. Na4 {[%emt 0:07:24]} Qa5 {[%emt 0:03:53]} 24. Qb7+ {[%emt 0:02:01]} Qc7 {[%emt 0:00:37]} 25. hxg7 {[%emt 0:05:04]} Bxg7 {[%emt 0:04:32]} 26. Nxc5+ {[%emt 0:00:15]} Kd8 {[%emt 0:00:13]} 27. Qe4 {[%emt 0:04:15]} Ke8 {[%emt 0:12:14]} 28. Na6 {[%emt 0:00:26]} Qd8 {[%emt 0:01:22]} 29. g6 {[%emt 0:00:44]} Bh6 {[%emt 0:04:31]} 30. gxf7+ {[%emt 0:02:20]} Kxf7 {[%emt 0:00:59]} 31. Nc5 {[%emt 0:00:40]} Qd5 {[%emt 0:00:59]} 32. Bxh6 {[%emt 0:00:29]} Rxh6 {[%emt 0:00:34]} 33. Qxd5 {[%emt 0:00:29]} exd5 {[%emt 0:00:09]} 34. Nd3 {[%emt 0:00:20]} Ke6 {[%emt 0:01:45]} 35. Kd2 {[%emt 0:00:10]} Rh8 {[%emt 0:00:25]} 36. c3 {[%emt 0:00:26]} Rb8 {[%emt 0:00:17]} 37. b4 {[%emt 0:00:57]} d4 {[%emt 0:02:06]} 38. c4 {[%emt 0:00:35]} Kf5 {[%emt 0:01:16]} 39. f3 {[%emt 0:00:30]} Rh8 {[%emt 0:00:47]} 40. a4 {[%emt 0:00:30]} Rh2+ {[%emt 0:01:00]} 41. Kd1 {[%emt 0:04:54]} e4 {[%emt 0:00:26]} 42. fxe4+ {[%emt 0:01:21]} Kxe4 {[%emt 0:00:19]} 43. Ne1 {[%emt 0:01:23]} Rb2 {[%emt 0:04:43]} 44. b5 {[%emt 0:00:36]} Rb4 {[%emt 0:00:14]} 0-1